Cogmind - Beta 14 @@@ ROGUE MODE // 2025.05.01 @ 18:54:48 Player: JB Result: Self-destructed Performance ------------- Evolutions (1) 500 Regions Visited (2) 400 Robots Destroyed (17) 85 Value Destroyed (427) 427 Prototype IDs (0) 0 Alien Tech Used (0) 0 Bonus (0) 0 TOTAL SCORE: 1412 Bonus ------- None Cogmind --------- Core Integrity 241/400 Matter 300/300 Energy 79/250 System Corruption 0% Temperature Warm (155) Movement Walking (120) Location -9/Materials Parts ------- > --- POWER (1) -------- Ion Engine > --- PROPULSION (2) --- Aluminum Leg > --- UTILITY (2) ------ Small Storage Unit Weight Redist. System > --- WEAPON (4) ------- Light EM Pulse Cannon Light Assault Rifle > --- INVENTORY (8) ---- Light Treads Light Treads Wheel Compact Wheel Improved Targeting Computer Mining Claw Peak State ------------ > --- POWER ------------ Ion Engine > --- PROPULSION ------- Aluminum Leg Aluminum Leg > --- UTILITY ---------- Small Storage Unit Weight Redist. System > --- WEAPON ----------- EM Pulse Gun Light EM Pulse Cannon Assault Rifle Light Assault Rifle > --- INVENTORY -------- Light Treads Light Treads Aluminum Leg Wheel Compact Wheel Improved Targeting Computer Mining Claw [Rating: 11] Favorites ----------- Power Light Ion Engine Engine Light Ion Engine Propulsion Aluminum Leg Leg Aluminum Leg Utility Small Storage Unit Device Weight Redist. System Storage Small Storage Unit Weapon Light Assault Rifle Energy Gun EM Pulse Gun Energy Cannon Light EM Pulse Cannon Ballistic Gun Light Assault Rifle Build | -11 -10 -9 ------- Run | Yrd Mat Mat Slots Evolved 2 | . . 2 Power . | . . . Propulsion . | . . . Utility . | . . . Weapon 2 | . . 2 Parts Attached 16 | 6 3 7 Power 2 | 1 . 1 Engine 2 | 1 . 1 Core . | . . . Reactor . | . . . Propulsion 6 | 2 2 2 Treads . | . . . Leg 6 | 2 2 2 Wheel . | . . . Hover . | . . . Flight . | . . . Utility 2 | 1 1 . Device 1 | . 1 . Storage 1 | 1 . . Processor . | . . . Hackware . | . . . Protection . | . . . Artifact . | . . . Weapon 6 | 2 . 4 Energy Gun 1 | . . 1 Energy Cannon 1 | . . 1 Ballistic Gun 4 | 2 . 2 Ballistic Cannon . | . . . Launcher . | . . . Special Weapon . | . . . Impact Weapon . | . . . Slashing Weapon . | . . . Piercing Weapon . | . . . Special Melee Weapon . | . . . Unidentified Prototypes . | . . . Parts Lost 7 | . . 7 Power 1 | . . 1 Propulsion 2 | . . 2 Utility . | . . . Weapon 4 | . . 4 Highest Loss Streak 4 | . . 4 To Critical Strikes . | . . . Average Slot Usage (%) 95 | . 97 91 Engine 12 | . 14 11 Leg 25 | . 28 22 Device 11 | . 11 11 Storage 12 | . 14 11 Energy Gun 1 | . . 5 Ballistic Gun 28 | . 28 30 Peak Build Rating 11 | 6 8 11 Average Rating 7 | 4 7 9 On Entrance 4 | . 6 8 Naked Turns . | . . . Heaviest Build 19 | 10 10 19 Greatest Support 26 | 20 26 26 Greatest Overweight (x) 1 | . . 1 Average Overweight (x) . | . . . Largest Inventory Capacity 8 | 8 8 8 Average Capacity 7 | 6 8 8 Most Carried 8 | 6 8 8 Average Carried 6 | 3 7 6 Final Capacity 8 | 8 8 8 Final Carried 8 | 6 8 6 Class Distribution -------------------- 70% | Mutant 29% | Gunner Dominant Class ---------------- Mutant | -10/Materials Gunner | -9/Materials Resources | -11 -10 -9 ----------- Run | Yrd Mat Mat Matter Collected 559 | 181 179 199 Remotely . | . . . Salvage Created 726 | . 316 410 Parts 50 | . 18 32 Haulers Intercepted 1 | . 1 . Recyclers Shooed 1 | . 1 . Parts Field Recycled . | . . . Retrieved Matter . | . . . Parts Self-Destructed . | . . . Prevented . | . . . Kills | -11 -10 -9 ------- Run | Yrd Mat Mat Combat Hostiles Destroyed 12 | . 6 6 Guns 11 | . 6 5 AOE 1 | . . 1 Classes Destroyed 8 | . 5 3 Builder 1 | . 1 . Hauler 1 | . 1 . Recycler 2 | . 1 1 Operator 1 | . . 1 Swarmer 3 | . 3 . Grunt 4 | . 3 1 Brawler 1 | . . 1 Sentry 4 | . . 4 Best Kill Streak 3 | . 3 3 Combat Bots Only 3 | . 3 2 Max Kills in Single Turn 1 | . 1 1 Gunslinging . | . . . Exploded 1 | . . 1 Melee . | . . . Uniques/NPCs Destroyed . | . . . Combat | -11 -10 -9 -------- Run | Yrd Mat Mat Hostile Shots Fired 105 | . 44 61 Missed 20 | . 6 14 Damage Taken 1063 | . 381 682 Core 275 | . 116 159 Absorbed by Shields . | . . . Core Remaining (%) 76 | 100 53 . Volleys Fired 77 | . 46 31 Largest 4 | . 2 4 Hottest 136 | . 40 136 Shots Fired 186 | . 92 94 Gun 181 | . 92 89 Cannon 5 | . . 5 Launcher . | . . . Special . | . . . Kinetic 163 | . 92 71 Thermal . | . . . Explosive . | . . . Electromagnetic 23 | . . 23 Robot Hit Streak 8 | . 8 8 Robot Miss Streak 5 | . 5 4 Penetration Max . | . . . Secondary Targets . | . . . Shots Hit Robots 112 | . 55 57 Core Hits 44 | . 25 19 Critical Kills . | . . . Critical Parts Destroyed . | . . . Critical Strikes . | . . . Melee Attacks . | . . . Impact . | . . . Slashing . | . . . Piercing . | . . . Sneak Attacks . | . . . Combat Hostiles . | . . . Follow-up Attacks . | . . . Damage Inflicted 1156 | . 456 700 Guns 1021 | . 456 565 Cannons 42 | . . 42 Explosions 93 | . . 93 Melee . | . . . Ramming . | . . . Kinetic 878 | . 456 422 Thermal 93 | . . 93 Explosive . | . . . Electromagnetic 185 | . . 185 Impact . | . . . Slashing . | . . . Piercing . | . . . Highest Corruption . | . . . Average Corruption . | . . . Corruption Purged . | . . . Corruption Blocked . | . . . Overload Shots . | . . . Overflow Damage . | . . . Projectiles . | . . . Explosions . | . . . Melee . | . . . Knockbacks . | . . . Impact . | . . . Kinetic . | . . . Secondary . | . . . Self-Inflicted Damage . | . . . Shots . | . . . Rammed . | . . . Targets Rammed . | . . . Kicked . | . . . Crushed . | . . . Highest Temperature 166 | . 12 166 Average Temperature 24 | . 7 29 Received Heat Transfer 360 | . 144 216 Siege Activations . | . . . Robots Corrupted . | . . . Combat Hostiles . | . . . Parts Fried . | . . . Impact Corruptions . | . . . Robots Melted . | . . . Combat Hostiles . | . . . Parts Melted . | . . . Heat Transferred 50 | . . 50 Parts Sabotaged . | . . . Parts Stolen . | . . . Parts Stripped . | . . . Power Chain Reactions 1 | . . 1 Alert | -11 -10 -9 ------- Run | Yrd Mat Mat Peak Influence 256 | . 187 256 Initial 78 | . . 78 Average 90 | . 80 130 Maximum Alert Level 1 | . . 1 Low Security (%) 95 | 100 100 86 Level 1 4 | . . 13 Level 2 . | . . . Level 3 . | . . . Level 4 . | . . . Level 5 . | . . . High Security . | . . . Max Security . | . . . Squads Dispatched 2 | . 1 1 Investigation 1 | . 1 . Extermination . | . . . Reinforcement 1 | . . 1 Assault . | . . . Garrison . | . . . Intercept . | . . . Searches Triggered . | . . . Construction Impeded . | . . . Haulers Reinforced . | . . . Active Scanning Responses . | . . . Cargo Convoy Interrupts . | . . . Stealth | -11 -10 -9 --------- Run | Yrd Mat Mat Distress Signals 4 | . 1 3 Communications Jammed . | . . . Distress Signals . | . . . Times Spotted 23 | . 8 15 Peak Tracking Total 6 | . 4 6 Tactical Retreats 1 | . . 1 Traps | -11 -10 -9 ------- Run | Yrd Mat Mat Traps Triggered 1 | . 1 . Indirectly . | . . . Trap Hack Attempts . | . . . Triggered . | . . . Disarmed . | . . . Reprogrammed . | . . . Reused . | . . . Traps Extracted . | . . . Installed . | . . . Triggered . | . . . Machines | -11 -10 -9 ---------- Run | Yrd Mat Mat Machines Disabled 1 | . . 1 Max in Single Turn 1 | . . 1 Machines Repaired . | . . . Machines Dismantled . | . . . Machines Sabotaged . | . . . Overloaded Fab Kills . | . . . Hacking | -11 -10 -9 --------- Run | Yrd Mat Mat Machines Accessed . | . . . Terminals . | . . . Fabricators . | . . . Repair Stations . | . . . Recycling Units . | . . . Scanalyzers . | . . . Garrison Access . | . . . Total Hacks . | . . . Successful . | . . . Failed . | . . . Catastrophic . | . . . Database Lockouts . | . . . Manual . | . . . Terminals . | . . . Fabricators . | . . . Repair Stations . | . . . Recycling Units . | . . . Scanalyzers . | . . . Garrison Access . | . . . Terminal Hacks . | . . . Fabricator Hacks . | . . . Repair Station Hacks . | . . . Recycling Unit Hacks . | . . . Scanalyzer . | . . . Garrison Access Hacks . | . . . Unauthorized Hacks . | . . . Terminals . | . . . Fabricators . | . . . Repair Stations . | . . . Recycling Units . | . . . Scanalyzers . | . . . Garrison Access . | . . . Data Cores Recovered . | . . . Used . | . . . Hacking Detections . | . . . Full Trace Events . | . . . Feedback Events . | . . . Feedback Blocked . | . . . Robot Schematics Acquired . | . . . Robots Built . | . . . Authchips . | . . . Time . | . . . Total Robot Build Rating . | . . . Part Schematics Acquired . | . . . Parts Built . | . . . Authchips . | . . . Time . | . . . Total Part Build Rating . | . . . Parts Repaired . | . . . Time . | . . . Parts Recycled . | . . . Recycled Matter . | . . . Retrieved Matter . | . . . Retrieved Components . | . . . Parts Scanalyzed . | . . . Part Schematics Acquired . | . . . Parts Damaged . | . . . Bothacking | -11 -10 -9 ------------ Run | Yrd Mat Mat Used RIF Installer . | . . . Robots Hacked . | . . . Non-combat . | . . . Combat . | . . . Robot Hacks Applied . | . . . Relay Couplers Released . | . . . Fabnet Peak Effective % . | . . . Robots Rewired . | . . . Allies Hacked . | . . . Hacks Repelled . | . . . Allies | -11 -10 -9 -------- Run | Yrd Mat Mat Total Allies . | . . . Largest Group . | . . . Highest-Rated Group . | . . . Highest-Rated Ally . | . . . Total Orders . | . . . Ally Attacks . | . . . Total Damage . | . . . Kills . | . . . Allies Corrupted . | . . . Allies Melted . | . . . Intel | -11 -10 -9 ------- Run | Yrd Mat Mat Robot Analysis Total . | . . . Derelict Logs Recovered . | . . . Drone Launches . | . . . Drone Recoveries . | . . . Exploration | -11 -10 -9 ------------- Run | Yrd Mat Mat Turns Passed 635 | 61 349 225 Spaces Moved 311 | 43 182 86 Core 7 | 7 . . Treads . | . . . Legs 304 | 36 182 86 Wheels . | . . . Hover . | . . . Flight . | . . . Fastest Speed 50 | 50 120 120 Average Speed 118 | 108 120 120 Slowest Speed 190 | 120 120 190 Overloaded Moves . | . . . Propulsion Burnouts . | . . . Robots Hopped . | . . . Cave-ins Triggered . | . . . Exploration Rate (%) 16 | 4 30 14 Regions Visited 2 Branch Regions . Pre-discovered Areas . | . . . Known Exits Taken . | . . . Unknown Exits Taken 2 | 1 1 . Scrap Searched . | . . . Spaces Dug . | . . . Terrain Destroyed 2 | . . 2 Melee . | . . . Projectile . | . . . AOE 2 | . . 2 Terrain Rammed . | . . . Walls Destroyed . | . . . Machines Disabled . | . . . Actions | -11 -10 -9 --------- Run | Yrd Mat Mat Total 437 | 54 239 144 Wait 24 | . 5 19 Move 309 | 42 181 86 Hop . | . . . Pick Up 9 | 6 2 1 Fast Attach 9 | 6 1 2 Attach 4 | . . 4 Detach . | . . . Swap 3 | . 2 1 Drop 2 | . 2 . Fire 77 | . 46 31 Melee . | . . . Ram . | . . . Kick . | . . . Crush . | . . . Escape Stasis . | . . . Rewire . | . . . Trap . | . . . Miscellaneous . | . . . Route ------- -11/Scrapyard -10/Materials -9/Materials History --------- Turn | Location | Event 5 | -11/Scrapyard | Discovered new exit (range 16) 62 | -11/Scrapyard | Entered Materials 307 | -10/Materials | Discovered new exit (range 15) 316 | -10/Materials | Build established: Mutant 411 | -10/Materials | Entered another Materials area 411 | -9/Materials | Evolved 2 slots: Weapon x2 549 | -9/Materials | Lost 3 parts (1p2w) 636 | -9/Materials | Self-destructed Last Messages --------------- 00596_ G-34 Mercenary destroyed. 00599_ K-01 Serf collects debris. 00599_ Acquired 36 matter. 00603_ K-01 Serf collects debris. 00617_ Acquired Lgt. EM Pulse Cannon. 00618_ B-36 Bruiser destroyed. 00621_ Aluminum Leg destroyed. 00622_ Acquired 31 matter. 00625_ Acquired 10 matter. 00626_ Acquired 4 matter. 00627_ EM Pulse Gun destroyed. 00627_ Assault Rifle destroyed. 00628_ Chain reaction triggered in Imp. Ion Engine. 00628_ Y-45 Defender destroyed. 00628_ Processing Tank disabled. 00629_ Acquired 1 matter. 00632_ G-34 Mercenary IFF system glitched. 00633_ Aluminum Leg destroyed. 00634_ Acquired 1 matter. Map ----- +----------------------------------------------------+ | ?????????????????????# # # """ #? | | ?????????????????????# = # # #? | | ?????????????????????# # ########? | | ?????????????????????######## #???????? | | ????????????????????????????# #???????? | | ????????????????????????????# #???????? | | ????????????????????????????# #???????? | | ????????????????????????????# #???????? | | ??????????????????? ???????# #???????? | | ??????????????????? ????## ##??????? | | ?????????????????? ] ??# #??????? | | ????????????????????? # #??????? | | ???????????????????????? + T #??????? | | ???????????????????????????# = #??????? | | ???????????????????????????# !=! #?##???? | | ???????????????????????????##%[%### ##### | | ????????????????????????????#!%!# # | | ????????????????????????????# !#= """ # | | ???????????????? ######## [%/! """ # | | ???????????????? =%= !#= """ # | | ???????????????? ! # # | | ???????????????? #! """ # | | ???????????????? ######## # """ # | | ????????????????????######### # """ # | | ????????????????????# =T # *!# ? | | ????????????????????# *@= # !%# "T" ? | | ????????????????????# g / *;[[!# """?# | | ????????????????????# g = ;%==#######?? | | ????????????????????# "" " [;[ #???????? | | ??????????????????? + """" # #???????? | | ?????????????????? # """"" # #???????? | | ???????????????? ?######### #???????? | | ??????????????? ??????????# #???????? | | ?????????????? ???????????# #???????? | | ????????????? ?????????????# +???????? | | ????????????????????????????# #???????? | | ????????????????????????????###*#???????? | | ???????????????????????????????=#???????? | | ???????????????????????????????%#???????? | | ???????????????????????????????!#???????? | | ???????????????????????????????/#???????? | | ??????????????????????????????? #???????? | | ??????????????????????????????? ????????? | | ??????????????????????????????? ????????? | | ????????????????????????????????????????? | | ????????????????????????????????????????? | | ????????????????????????????????????????? | | ????????????????????????????????????????? | | ????????????????????????????????????????? | | ????????????????????????????????????????? | +----------------------------------------------------+ Best States ------------- Heat Dissipation 28 Energy Generation 10 Energy Capacity 250 Matter Stores 300 Matter Capacity 300 Sight Range 16 Terrain Scan Density 10 Additional Mass Support 6 Evasion (%) 55 Item Schematics ----------------- None Robot Schematics ------------------ None Fabricated ------------ Nothing Alien Tech Used ----------------- None Achievements -------------- None Challenges ------------ None Game ------ Seed SegregatorLegArchive Manual? 0 Play Time 00:04:39 Cumulative 67.2 hours Start 2025.04.30 @ 20:39:56 End 2025.05.01 @ 18:54:48 Sessions 3 Manual Loads 0 Difficulty Rogue Special Mode None Game No. 144 Rogue 96 Adventurer 48 Explorer 0 Win Type - Total 0 Types 0/0/0/0/0/0/0/0/0 Lore% 20 Gallery% 43 Achievement% 38 Wizard Run 0 Options --------- Layout 1 ASCII 0 Keyboard 0 Movement Mouse Keybinds 0 Fullscreen 1 Font 32/SmallcapsGlow Map View 50x35 Zoom Use 0% Tactical HUD 1 Map Filters NONE Filters NONE Steam 1 RUN: a4154e9d-627d-42f1-8d22-c5b8880bfc4a